bitfinex/quotes_ETHUSD_20260302
["timestamp","ask_amount","ask_price","bid_price","bid_amount"]
[1772422883038,0.002,1976.2,1975.9,2.69676213]
[1772422883209,0.002,1976.2,1976.0,2.69676213]
[1772422883528,0.002,1976.2,1976.0,3.19676213]
[1772422883707,0.002,1976.2,1976.1,0.5]
[1772422884537,0.002,1976.4,1976.1,0.5]
[1772422884743,0.002,1976.4,1976.2,2.69676213]
[1772422886735,0.002,1976.4,1976.2,3.19676213]
[1772422886936,0.002,1976.4,1976.2,2.69676213]
[1772422888446,0.002,1976.4,1975.9,5.62524323]
[1772422889750,0.002,1976.4,1975.9,4.36]
[1772422890053,0.002,1976.4,1975.9,5.62524312]
[1772422890346,0.002,1976.4,1976.0,0.5]
[1772422891229,0.002,1976.4,1976.0,1.76517354]
[1772422891429,0.002,1976.3,1976.0,0.5]
[1772422892148,0.002,1976.3,1976.1,2.69676213]
[1772422892352,0.002,1976.3,1976.0,2.69676213]
[1772422893546,0.41187936,1976.3,1976.0,2.69676213]
[1772422894450,0.002,1976.3,1976.0,2.69676213]
[1772422897226,0.002,1976.5,1976.2,0.5]
[1772422897426,0.002,1976.5,1976.0,4.46193805]
[1772422898959,2.05175217,1976.5,1975.7,5.12536296]
[1772422899659,2.05175217,1976.5,1975.7,5.62536296]
[1772422900033,2.05175217,1976.5,1975.7,4.36]
[1772422900228,1.26492612,1976.4,1975.7,5.62536608]
[1772422901363,1.26492612,1976.4,1975.8,0.5]
[1772422901564,7.11145668,1976.5,1975.9,0.5]
[1772422901565,1.2669092,1976.5,1975.9,0.5]
[1772422902972,0.002,1976.5,1976.1,0.001]
[1772422903366,0.002,1976.4,1976.1,0.001]
[1772422905246,0.002,1976.4,1976.2,2.69676213]
[1772422905448,0.002,1976.4,1976.2,3.19676213]
[1772422906475,0.002,1976.4,1976.2,0.5]
[1772422906972,0.002,1976.4,1976.1,0.501]
[1772422907273,0.002,1976.4,1976.2,2.69676213]
[1772422907603,0.002,1976.4,1976.2,3.19676213]
[1772422908283,0.002,1976.4,1976.1,0.001]
[1772422908494,0.002,1976.4,1976.1,2.69776213]
[1772422909371,0.002,1976.4,1976.1,3.19776213]
[1772422909977,0.002,1976.4,1976.1,1.70557443]
[1772422912057,0.002,1976.4,1976.0,1e-08]
[1772422915292,0.002,1976.4,1976.1,0.001]
[1772422915678,0.002,1976.3,1976.1,0.001]
[1772422919698,0.002,1976.3,1976.0,1e-08]
[1772422920175,1.26699013,1976.3,1976.0,1e-08]
[1772422921969,1.26699013,1976.3,1975.8,0.001]
[1772422922376,2.672,1976.2,1975.8,0.501]
[1772422922686,3.94099013,1976.3,1975.8,0.501]
[1772422927111,0.46547409,1976.2,1975.8,1e-08]
[1772422927305,0.46547409,1976.2,1975.9,0.001]
[1772422927521,0.46547409,1976.2,1975.5,0.001]
[1772422927522,0.46547409,1976.0,1975.5,0.001]
[1772422927718,3.17447409,1975.9,1975.6,0.001]
[1772422928610,0.46547409,1975.8,1975.6,0.001]
[1772422928985,1.26537429,1975.7,1975.6,0.001]
[1772422930537,1.26511816,1976.1,1975.6,0.46709559]
[1772422930690,1.73059225,1976.1,1975.6,0.46709559]
[1772422931212,3.98008513,1976.2,1975.7,0.46609559]
[1772422931415,2.715,1976.2,1975.7,0.46609559]
[1772422932017,0.002,1976.3,1975.7,0.46609559]
[1772422932219,0.002,1976.3,1975.8,0.46609559]
[1772422932735,1.26702474,1976.3,1975.8,0.46609559]
[1772422932940,0.002,1976.3,1975.8,0.46609559]
[1772422933236,0.002,1976.3,1976.0,0.46609559]
[1772422933836,50.50599112,1976.4,1976.0,0.46745029]
[1772422934806,50.50599112,1976.4,1976.1,0.46745029]
[1772422936914,50.50599112,1976.4,1976.3,0.46745029]
[1772422937228,0.002,1976.5,1976.3,0.46903145]
[1772422937407,0.002,1976.5,1976.2,1.26505414]
[1772422937408,4.01410801,1977.0,1976.5,0.46903145]
[1772422937615,2.74953886,1977.0,1976.5,0.46903145]
[1772422938125,0.00153886,1977.0,1976.5,0.46903145]
[1772422939048,0.4885848,1976.8,1976.2,3.86]
[1772422939336,0.4885848,1976.8,1976.3,0.46903145]
[1772422939740,0.4885848,1976.8,1976.2,3.86]
[1772422939932,0.002,1976.4,1976.2,3.86]
[1772422940241,0.002,1976.4,1976.1,0.47003145]
[1772422941032,0.002,1976.4,1976.1,0.001]
[1772422943244,0.002,1976.4,1976.1,0.47003145]
[1772422943541,0.002,1976.4,1976.1,0.001]
[1772422943542,0.4905848,1976.4,1976.1,0.001]
[1772422944648,0.4905848,1976.4,1976.1,0.47003145]
[1772422944649,0.002,1976.4,1976.1,0.47003145]
[1772422946846,0.4905848,1976.4,1976.1,0.001]
[1772422947655,1.26499013,1976.3,1976.1,0.001]
[1772422948026,1.75555778,1976.4,1976.1,0.001]
[1772422950565,1.75555778,1976.4,1975.8,1.26626958]
[1772422950566,0.4885848,1976.2,1975.8,0.001]
[1772422950852,0.4885848,1976.1,1975.8,0.001]
[1772422951656,1.75376698,1976.0,1975.8,0.001]
[1772422951855,1.20518218,1976.0,1975.8,0.001]
[1772422952156,1.20518218,1976.0,1975.6,0.001]
[1772422952451,0.4885848,1975.9,1975.6,0.001]
[1772422953725,1.75388831,1975.9,1975.6,0.001]
[1772422958973,1.26521312,1976.0,1975.6,0.47003145]
[1772422959864,0.4885848,1976.1,1975.6,0.47003145]
[1772422960062,0.4885848,1976.1,1975.6,0.001]
[1772422960445,0.4885848,1976.0,1975.5,0.001]
[1772422960640,0.4885848,1975.8,1975.5,0.001]
[1772422962058,1.26514072,1976.1,1975.5,0.47003145]
[1772422962258,0.4885848,1976.0,1975.5,0.47003145]
[1772422962562,1.75383101,1975.9,1975.5,0.001]
[1772422963356,0.4885848,1975.8,1975.5,0.001]
[1772422964667,1.26537429,1975.7,1975.5,0.001]
[1772422964858,1.26537429,1975.7,1975.6,0.001]
[1772422965181,1.75393276,1975.8,1975.6,0.001]
[1772422966057,1.26534796,1975.8,1975.6,0.001]
[1772422966787,0.4885848,1975.7,1975.6,0.001]
[1772422966960,0.4885848,1975.7,1975.5,0.001]
[1772422968680,1.75400044,1975.7,1975.5,0.001]
[1772422972076,0.4885848,1975.7,1975.5,0.001]
[1772422972800,1.75396439,1975.7,1975.5,0.001]
[1772422974192,0.48383084,1975.6,1975.5,0.001]
[1772422975304,1.74926918,1975.6,1975.5,0.001]
[1772422976112,1.26541976,1975.7,1975.5,0.001]
[1772422976286,4.49506167,1976.0,1975.5,0.47660197]
[1772422976907,0.89387706,1975.9,1975.5,0.47660197]
[1772422977289,0.48383084,1975.7,1975.5,0.001]
[1772422977908,0.89387706,1975.7,1975.5,0.001]
[1772422978108,0.89387706,1975.7,1975.6,0.001]
[1772422978286,0.89587706,1975.7,1975.5,0.001]
[1772422979305,0.48383084,1975.6,1975.4,0.001]
[1772422979822,1.74933226,1975.6,1975.4,0.001]
[1772422980423,0.89387706,1975.5,1975.3,0.001]
[1772422981315,0.48383084,1975.5,1975.3,0.001]
[1772422981687,1.74933226,1975.6,1975.3,0.001]
[1772422984914,1.74933226,1975.6,1975.3,0.47660197]
[1772422986038,1.74933226,1975.6,1975.3,0.001]
[1772422986349,0.41004622,1975.5,1975.3,0.001]
[1772422986742,1.26556646,1975.4,1975.3,0.001]
[1772422987242,1.7493973,1975.4,1975.1,0.001]
[1772422987443,1.26556646,1975.4,1975.1,0.47660197]
[1772422988313,1.26547443,1975.6,1975.2,0.47560197]
[1772422988514,1.74930527,1975.6,1975.2,0.47560197]
[1772422989139,0.48383084,1975.5,1975.2,0.47560197]
[1772422989646,0.89387706,1975.3,1975.1,0.001]
[1772422990142,0.48383084,1975.2,1975.1,0.001]
[1772422990351,0.48383084,1975.2,1974.8,0.001]
[1772422990566,0.41004622,1974.9,1974.8,0.001]
[1772422990721,0.48383084,1975.0,1974.8,0.001]
[1772422991218,1.74967625,1975.0,1974.8,0.001]
[1772422991421,0.48383084,1975.0,1974.8,0.001]
[1772422992359,1.67585036,1975.1,1974.8,0.001]
[1772422992360,2.1596812,1975.1,1974.8,0.001]
[1772422992877,0.48383084,1975.0,1974.8,0.001]
[1772422993084,0.41004622,1974.6,1974.5,0.001]
[1772422993779,0.41004622,1974.6,1974.2,0.47997391]
[1772422993780,2.15457452,1974.6,1974.2,0.47997391]
[1772422994344,0.41004622,1974.4,1974.2,0.001]
[1772422994545,0.47842868,1974.5,1974.2,0.001]
[1772422994876,0.47842868,1974.4,1974.0,0.00153886]
[1772422995178,0.47842868,1974.2,1974.0,0.00153886]
[1772422995543,0.47842868,1974.2,1973.8,0.47897391]
[1772422995769,0.47842868,1974.2,1973.6,0.47897391]
[1772422995937,0.47842868,1974.1,1973.4,0.47897391]
[1772422996142,3.22542868,1974.4,1973.4,0.47897391]
[1772422996343,0.47842868,1974.3,1973.4,0.47897391]
[1772422997369,5.45544863,1974.6,1973.6,0.46456749]
[1772422997370,0.39090453,1974.6,1973.6,0.46456749]
[1772422997561,0.39090453,1974.6,1973.8,0.46456749]
[1772422998173,1.65699047,1974.6,1973.9,0.46456749]
[1772422998366,0.47508304,1974.5,1973.9,0.46456749]
[1772422998674,0.47508304,1974.5,1973.7,2.09856749]
[1772422998841,0.39090453,1974.6,1973.8,0.46456749]
[1772422999049,1.74112882,1974.7,1973.8,0.46456749]
[1772422999250,1.74112882,1974.7,1974.0,0.46456749]
[1772422999444,0.47508304,1974.6,1974.0,0.46456749]
[1772422999664,0.47508304,1974.6,1973.9,1.26652819]
[1772422999868,0.47508304,1974.6,1974.0,0.46456749]
[1772423001853,0.47508304,1974.5,1974.0,0.46456749]
[1772423002073,0.47508304,1974.5,1974.0,1.73098464]
[1772423002776,0.47708304,1974.5,1974.0,1.7310235]
[1772423003277,0.47708304,1974.5,1974.1,0.46456749]
[1772423003582,0.002,1974.5,1974.1,0.46456749]
[1772423003953,0.002,1974.8,1974.3,0.46456749]
[1772423004574,0.002,1974.8,1974.4,0.46456749]
[1772423006285,0.002,1974.8,1974.6,0.46456749]
[1772423008416,0.002,1974.8,1974.7,1.73058258]
[1772423009531,0.00153886,1975.0,1974.7,1.73058258]
[1772423009885,0.00153886,1975.0,1974.7,1.26601509]
[1772423010128,0.00153886,1975.0,1974.8,0.46456749]
[1772423010622,0.00153886,1975.0,1974.9,1.26588688]
[1772423012752,0.00153886,1975.0,1974.8,5.06372557]
[1772423012959,0.00153886,1975.0,1974.9,0.46456749]
[1772423013253,1e-08,1975.2,1974.8,5.06372557]
[1772423013555,1e-08,1975.2,1974.8,5.52829306]
[1772423014330,1e-08,1975.2,1974.8,1.26595098]
[1772423014528,0.002,1975.5,1975.0,0.46456749]
[1772423014731,0.002,1975.5,1975.2,1.7302621]
[1772423015120,0.002,1975.5,1975.2,1.26569461]
[1772423015734,0.002,1975.5,1975.2,1.7302621]
[1772423017346,0.002,1975.7,1975.3,0.46456749]
[1772423019513,0.002,1975.7,1975.4,1.26556646]
[1772423019912,0.47708304,1975.7,1975.4,1.26556646]
[1772423020340,0.47708304,1975.7,1975.3,1.26558006]
[1772423024350,0.47508304,1975.6,1975.2,5.12564511]
[1772423024515,0.47508304,1975.6,1975.2,5.12568458]
[1772423024911,0.47508304,1975.6,1975.2,1.26568458]
[1772423026742,0.47508304,1975.6,1975.1,8.9229564]
[1772423026743,0.47508304,1975.5,1975.1,5.12571258]
[1772423027652,0.47508304,1975.5,1975.1,5.59612679]
[1772423029052,0.47508304,1975.5,1975.1,5.12571258]
[1772423033355,0.49115666,1975.4,1975.1,5.12571258]
[1772423033934,0.49115666,1975.4,1975.1,1.26571258]
[1772423034115,0.49115666,1975.4,1975.0,5.59720123]
[1772423035146,0.49115666,1975.4,1975.0,3.861]
[1772423035367,0.49115666,1975.4,1974.7,1.73740333]
[1772423035656,0.47055037,1975.2,1974.7,1.73740333]
[1772423035821,0.47055037,1975.2,1974.8,0.47041421]
[1772423037824,0.47055037,1975.2,1974.8,1.73632044]
[1772423038224,0.47055037,1975.1,1974.8,0.47041421]
[1772423038418,0.47055037,1975.1,1974.7,1.26701497]
[1772423038728,0.47055037,1975.1,1974.7,1.26701102]
[1772423039348,0.47055037,1975.1,1974.7,0.001]
[1772423039728,0.47055037,1975.1,1974.7,1.26700557]
[1772423040153,0.47055037,1975.0,1974.7,1.26700557]
[1772423040858,0.47055037,1975.0,1974.9,0.001]
[1772423043474,0.36702924,1975.4,1974.9,0.47141421]
[1772423043950,0.002,1975.5,1975.1,0.47041421]
[1772423044346,0.6156298,1975.3,1975.0,3.361]
[1772423044548,0.36702924,1975.2,1974.9,0.001]
[1772423044744,0.36702924,1975.2,1974.9,1.26688227]
[1772423044948,0.36702924,1975.2,1974.9,0.001]
[1772423045408,0.36702924,1975.2,1974.9,1.26687267]
[1772423045758,0.36702924,1975.2,1974.9,0.001]
[1772423047471,0.36702924,1975.4,1974.9,0.47141421]
[1772423047673,1.63454204,1975.5,1974.9,0.47141421]
[1772423047870,1.63453238,1975.5,1974.9,0.47141421]
[1772423048584,0.36702924,1975.4,1974.9,0.001]
[1772423048781,0.36702924,1975.1,1974.9,0.001]
[1772423051078,1.63273034,1975.2,1974.9,0.001]
[1772423051476,0.36702924,1975.2,1974.9,0.001]
[1772423052582,0.36702924,1975.2,1974.9,1.26688688]
[1772423052767,0.002,1975.5,1975.0,0.47041421]
[1772423053482,1.63453617,1975.5,1975.0,0.47141421]
[1772423053680,0.002,1975.1,1975.0,0.47141421]
[1772423054757,0.002,1975.1,1975.0,1.73723699]
[1772423058454,0.002,1975.1,1975.0,0.47141421]
[1772423058761,0.36902924,1975.1,1974.9,0.001]
[1772423059063,1.63480749,1975.1,1974.9,0.001]
[1772423059453,0.36902924,1975.1,1974.9,0.001]
[1772423061684,1.63480041,1975.1,1974.9,0.001]
[1772423062563,0.002,1975.3,1975.0,0.47779229]
[1772423064370,0.36902924,1975.3,1974.9,1.26683933]
[1772423064990,0.36902924,1975.3,1974.9,1.74463162]
[1772423065668,0.36702924,1975.2,1974.9,0.001]
[1772423066807,1.63470757,1975.3,1975.1,0.001]
[1772423066965,0.002,1975.2,1975.1,0.001]
[1772423068090,0.36902924,1975.2,1975.1,0.001]
[1772423069492,0.002,1975.2,1975.1,0.001]
[1772423069879,0.002,1975.2,1975.1,0.47879229]
[1772423070081,0.002,1975.3,1975.1,0.47879229]
[1772423070282,0.002,1975.3,1975.2,0.47779229]
[1772423077602,0.002,1975.3,1975.1,0.47879229]
[1772423078573,0.002,1975.5,1975.2,0.47779229]
[1772423079389,1.6385344,1975.5,1975.2,0.47779229]
[1772423079688,0.37302924,1975.5,1975.3,0.001]
[1772423080410,0.37102924,1975.4,1975.3,0.001]
[1772423081995,0.37102924,1975.3,1975.1,0.001]
[1772423085100,1.63667054,1975.3,1975.1,0.001]
[1772423085296,1.2656413,1975.3,1975.1,0.001]
[1772423085487,0.37102924,1975.2,1975.1,0.001]
[1772423086625,1.63672385,1975.2,1975.1,0.001]
[1772423086914,0.37102924,1975.2,1975.1,0.001]
[1772423087318,1.63672385,1975.2,1975.1,0.001]
[1772423087706,0.37102924,1975.2,1975.1,0.001]
[1772423089926,1.63670438,1975.3,1975.1,0.001]
[1772423090117,1.26567514,1975.3,1975.1,0.001]
[1772423090911,1.63664692,1975.4,1975.1,0.001]
[1772423091421,0.37102924,1975.3,1975.1,0.001]
[1772423091791,0.37102924,1975.3,1975.2,0.001]
[1772423092320,1.63865977,1975.3,1975.2,0.001]
[1772423092817,1.26763053,1975.3,1975.0,0.001]
[1772423093029,0.37102924,1975.2,1975.0,0.001]
[1772423094539,1.63674669,1975.2,1975.0,0.001]
[1772423095010,0.37102924,1975.1,1975.0,0.001]
[1772423097900,2.04911436,1975.3,1975.0,0.001]
[1772423098397,0.37102924,1975.2,1975.0,0.001]
[1772423099431,1.63674948,1975.2,1975.0,0.001]
[1772423099925,0.37102924,1975.1,1975.0,0.001]
[1772423100408,1.63674948,1975.2,1975.0,0.001]
[1772423100597,0.002,1975.3,1975.0,0.45640314]
[1772423101400,0.002,1975.3,1975.1,0.45540314]
[1772423103714,1.26755582,1975.5,1975.2,0.45540314]
[1772423104311,1.64058506,1975.5,1975.2,0.45540314]
[1772423105036,2.05099573,1975.5,1975.2,0.45640314]
[1772423105456,0.002,1975.3,1975.2,0.45640314]
[1772423106234,0.45141389,1975.2,1974.9,0.001]
[1772423108438,1.67810389,1975.3,1974.9,0.45640314]
[1772423109211,2.12951778,1975.3,1974.9,0.45640314]
[1772423109621,0.45141389,1975.2,1974.9,0.45640314]
[1772423109830,0.002,1975.3,1974.9,0.45640314]
[1772423110453,1.71714856,1975.2,1974.9,0.001]
[1772423110634,0.45141389,1975.1,1974.9,0.001]
[1772423113241,1.26573467,1975.2,1974.9,0.001]
[1772423113758,0.45341389,1975.3,1974.9,0.46205056]
[1772423114044,0.002,1975.5,1975.2,0.46105056]
[1772423115246,0.49540545,1975.5,1975.0,1.72683451]
[1772423115645,0.49540545,1975.5,1975.1,0.46105056]
[1772423116645,0.49340545,1975.3,1974.9,0.001]
[1772423116854,0.49340545,1975.3,1974.9,1.72793481]
[1772423117031,49.03478412,1975.2,1975.0,0.001]
[1772423117960,49.03678412,1975.2,1975.0,0.001]
[1772423121432,51.17860842,1975.2,1975.0,0.001]
[1772423121631,0.46571665,1975.1,1974.7,0.001]
[1772423121875,49.03678412,1975.2,1974.8,0.47673586]
[1772423122167,53.46820389,1975.2,1974.8,0.47673586]
[1772423122343,0.87612732,1975.1,1974.7,0.001]
[1772423122542,0.46571665,1975.0,1974.7,0.001]
[1772423124363,1.73157445,1975.0,1974.7,0.001]
[1772423124565,0.46571665,1975.0,1974.7,0.001]
[1772423125046,1.73153978,1975.0,1974.7,0.001]
[1772423126437,5.47344554,1975.1,1974.7,0.47773586]
[1772423126438,1.73152525,1975.1,1974.7,0.47773586]
[1772423127573,0.46571665,1975.0,1974.7,0.001]
[1772423127874,0.46571665,1974.9,1974.7,0.001]
[1772423129952,0.46571665,1974.9,1974.8,0.001]
[1772423131200,49.44719479,1975.2,1974.9,0.47673586]
[1772423131477,17.70866588,1975.2,1974.9,0.47673586]
[1772423131688,0.002,1975.3,1975.2,0.88714653]
[1772423132041,0.002,1975.3,1975.2,2.15284114]
[1772423133043,0.002,1975.7,1975.3,0.47673586]
[1772423134071,4.53329444,1975.6,1975.3,1.74235493]
[1772423135063,4.53329444,1975.6,1975.3,1.74235971]
[1772423137892,4.53329444,1975.6,1975.4,0.47673586]
[1772423138046,0.002,1975.7,1975.4,0.47673586]
[1772423138252,0.002,1975.7,1975.6,0.47673586]
[1772423139076,0.002,1975.8,1975.6,0.47673586]
[1772423139250,0.002,1975.8,1975.4,0.47673586]
[1772423139251,0.46771665,1975.8,1975.4,0.47673586]
[1772423139446,0.002,1975.8,1975.5,0.47673586]
[1772423139877,0.46771665,1975.8,1975.5,0.47673586]
[1772423140058,0.46771665,1975.8,1975.3,1.74233692]
[1772423140247,0.46771665,1975.8,1975.4,1.7422953]
[1772423140450,0.00353886,1976.0,1975.6,0.47673586]
[1772423140893,0.46571665,1975.9,1975.4,0.47673586]
[1772423141050,0.46571665,1975.9,1975.4,1.74229992]
[1772423141451,0.46571665,1975.9,1975.5,0.47673586]
[1772423141673,1.73446221,1976.0,1975.5,0.47673586]
[1772423142153,1.73446221,1976.0,1975.5,1.74223536]
[1772423142355,1.73446221,1976.0,1975.5,0.47673586]
[1772423142751,0.002,1975.7,1975.5,0.47673586]
[1772423143494,0.002,1975.7,1975.5,1.74220646]
[1772423144784,0.002,1975.7,1975.6,0.47673586]
[1772423147797,0.002,1975.8,1975.7,0.48380682]
[1772423148667,1.71622797,1975.7,1975.4,3.86]
[1772423148872,0.45085368,1975.7,1975.4,3.86]
[1772423150515,0.002,1975.8,1975.5,0.48380682]
[1772423154089,0.45285368,1975.8,1975.4,1.26550658]
[1772423154506,0.45285368,1975.8,1975.3,0.001]
[1772423154692,0.45085368,1975.7,1975.3,0.001]
[1772423154898,0.45085368,1975.5,1975.3,0.001]
[1772423156104,0.45085368,1975.5,1975.4,0.001]
[1772423156407,0.45285368,1975.7,1975.4,0.001]
[1772423156699,1.71822881,1975.7,1975.4,0.001]
[1772423157103,0.45085368,1975.6,1975.4,0.001]
[1772423159808,1.71629694,1975.6,1975.4,0.001]
[1772423161109,0.45285368,1975.7,1975.4,0.001]
[1772423161484,1.71823134,1975.7,1975.4,0.001]
[1772423161692,0.45085368,1975.6,1975.4,0.001]
[1772423164407,1.71635608,1975.5,1975.4,0.001]
[1772423165602,0.45085368,1975.5,1975.4,0.001]
[1772423166913,1.71635608,1975.5,1975.2,0.48480682]
[1772423167813,1.71835608,1975.5,1975.2,0.48480682]
[1772423168312,0.45285368,1975.5,1975.4,0.001]
[1772423168513,1.71835608,1975.5,1975.4,0.001]
[1772423169315,0.45085368,1975.4,1975.1,0.48380682]
[1772423171389,0.002,1975.5,1975.2,0.48380682]
[1772423171791,1.26750569,1975.5,1975.2,0.48380682]
[1772423175327,1.72570517,1975.5,1975.2,0.48380682]
[1772423176118,0.45819948,1975.4,1975.1,0.48761091]
[1772423176538,1.72570517,1975.5,1975.1,0.48761091]
[1772423177721,1.26750569,1975.5,1975.1,0.48761091]
[1772423177923,0.46505167,1975.4,1975.1,0.48761091]
[1772423178916,0.46505167,1975.4,1975.1,1.75336883]
[1772423179612,0.46505167,1975.4,1975.1,0.48761091]
[1772423180723,0.46705167,1975.5,1975.2,0.46878145]
[1772423181122,0.46705167,1975.5,1975.2,0.001]
[1772423183033,1.26556646,1975.4,1975.2,0.001]
[1772423186134,1.26556646,1975.4,1975.1,0.27362028]
[1772423186331,0.46505167,1975.1,1974.9,0.001]
[1772423186532,0.46505167,1974.9,1974.6,0.46878145]
[1772423187027,0.46505167,1974.9,1974.6,0.001]
[1772423187434,0.46505167,1974.8,1974.6,0.001]
[1772423187640,0.46505167,1974.5,1973.8,0.46778145]
[1772423187839,4.92352472,1974.6,1973.7,1.26665014]
[1772423187840,0.61544059,1974.0,1973.9,0.86066319]
[1772423188063,1.08145638,1974.1,1973.8,0.86066319]
[1772423189137,0.46505167,1974.0,1973.8,0.86066319]
[1772423189536,0.46505167,1974.0,1973.5,0.46878145]
[1772423189537,1.08145638,1973.9,1973.5,0.46878145]
[1772423189746,1.08145638,1974.5,1973.7,0.46778145]
[1772423189958,0.46505167,1974.7,1973.7,0.46778145]
[1772423190106,0.46505167,1974.7,1973.9,0.46778145]
[1772423190851,1.08145638,1974.7,1973.9,0.46778145]
[1772423191546,1.73119498,1974.6,1974.1,0.46778145]
[1772423191746,1.88246921,1974.7,1974.2,0.46778145]
[1772423191957,1.88246921,1974.7,1974.3,0.46778145]
[1772423192125,2.34752088,1974.7,1974.3,0.46778145]
[1772423192437,1.73111617,1974.7,1974.3,0.46778145]
[1772423193051,0.46659053,1975.0,1974.5,0.46778145]
[1772423193357,1.73242062,1975.0,1974.5,0.46778145]
[1772423193533,1.26736895,1975.0,1974.5,0.46778145]
[1772423193734,1.73242062,1975.0,1974.5,0.46778145]
[1772423194548,0.46505167,1974.9,1974.5,0.46778145]
[1772423194748,1.26736895,1975.0,1974.5,0.46778145]
[1772423194928,1.26736895,1975.0,1974.6,0.86066319]
[1772423195137,1.73242062,1975.0,1974.6,0.86066319]
[1772423196021,1.26736895,1975.0,1974.6,0.86066319]
[1772423196222,0.46505167,1974.9,1974.6,0.86066319]
[1772423198867,1.26595098,1974.8,1974.5,0.46778145]
[1772423201943,1.26595098,1974.8,1974.3,0.46778145]
[1772423201944,0.46505167,1974.7,1974.3,0.46778145]
[1772423202145,1.26595098,1974.8,1974.3,0.46778145]
[1772423202546,0.46505167,1974.7,1974.3,0.46778145]
[1772423202861,7.80580392,1974.9,1974.3,0.46778145]
[1772423202862,3.20705167,1974.9,1974.3,0.46778145]
[1772423203073,5.52896953,1974.8,1974.3,0.46778145]
[1772423203466,4.47445649,1975.0,1974.4,0.46778145]
[1772423203661,1.73245649,1975.0,1974.4,0.46778145]
[1772423204329,0.00153886,1975.0,1974.6,0.46778145]
[1772423204535,4.50045261,1975.3,1974.6,0.46778145]
[1772423204934,0.49277579,1975.3,1974.8,0.46778145]
[1772423205169,1.75840661,1975.3,1974.8,0.46778145]
[1772423205338,2.22345828,1975.3,1974.8,0.46778145]
[1772423205963,0.49277579,1975.3,1974.8,0.46778145]
[1772423206283,0.002,1975.0,1974.8,0.46778145]
[1772423211486,0.002,1975.0,1974.6,5.1260511]
[1772423211487,0.49168401,1975.0,1974.6,5.1260511]
[1772423211662,0.49168401,1975.0,1974.6,3.86]
[1772423211974,0.002,1975.0,1974.7,0.48596201]
[1772423213974,1.26782278,1975.0,1974.7,0.48596201]
[1772423214152,1.75750679,1975.0,1974.6,1.26607503]
[1772423214363,0.48968401,1974.9,1974.5,0.48596201]
[1772423216053,0.48968401,1974.9,1974.4,3.86]
[1772423216253,0.48968401,1974.9,1974.4,5.12617548]
[1772423216459,0.48968401,1974.9,1974.5,0.48596201]
[1772423218476,5.5553253,1975.3,1974.7,0.48596201]
[1772423218477,0.49277579,1975.3,1974.7,0.48596201]
[1772423218878,0.002,1975.5,1974.7,0.48596201]
[1772423219266,1e-08,1975.6,1974.8,0.48596201]
[1772423219472,0.002,1975.2,1974.8,0.48596201]
[1772423219775,1e-08,1975.6,1975.0,0.48596201]
[1772423220280,0.9002134,1975.6,1975.1,1.26575869]
[1772423220448,0.9002134,1975.6,1975.0,5.54914992]
[1772423220449,0.48968401,1975.5,1975.0,0.48596201]
[1772423220649,1e-08,1975.6,1975.0,0.48596201]
[1772423220650,1e-08,1975.6,1975.1,0.48596201]
[1772423221849,0.002,1975.7,1975.1,0.48596201]
[1772423222055,1e-08,1976.0,1975.1,0.55149801]
[1772423222452,1e-08,1976.0,1975.3,0.48596201]
[1772423222688,1e-08,1976.0,1975.5,0.48596201]
[1772423225355,0.48968401,1975.8,1975.1,0.48596201]
[1772423225576,2.05179135,1975.3,1974.6,0.001]
[1772423225781,0.48968401,1975.2,1974.7,0.48596201]
[1772423225986,0.48968401,1975.2,1974.6,0.001]
[1772423226684,0.48968401,1975.4,1974.7,0.48596201]
[1772423227091,0.48968401,1975.4,1974.6,1.2670701]
[1772423227274,1.26563053,1975.3,1974.6,1.2670701]
[1772423227480,0.48968401,1975.2,1974.6,1.2670701]
[1772423227791,0.48968401,1975.2,1974.6,1.75303211]
[1772423228490,0.48968401,1975.2,1974.6,0.48696201]
[1772423229159,0.48968401,1975.2,1974.6,0.001]
[1772423229671,1.7554427,1975.1,1974.6,0.001]
[1772423230272,0.48968401,1975.0,1974.6,0.001]
[1772423230795,0.48968401,1975.0,1974.7,0.001]
[1772423231588,1.75556377,1975.0,1974.7,0.001]
[1772423235299,1.75551299,1975.0,1974.7,0.001]
[1772423235468,0.48426065,1974.9,1974.7,0.001]
[1772423238910,5.06313824,1975.9,1974.7,0.46392662]
[1772423238911,2.717,1975.5,1974.7,0.46392662]
[1772423239070,0.488682,1975.4,1974.7,0.46392662]
[1772423239272,0.488682,1975.4,1974.7,0.001]
[1772423239485,0.488682,1975.1,1974.7,0.001]
[1772423241174,0.488682,1974.9,1974.7,0.001]
[1772423242113,0.488682,1974.9,1974.6,0.001]
[1772423242613,7.11473898,1975.2,1974.5,0.46292662]
[1772423242614,0.488682,1975.2,1974.5,0.46292662]
[1772423243310,0.488682,1975.0,1974.5,0.46292662]
[1772423243510,0.488682,1975.0,1974.8,0.001]
[1772423244185,0.488682,1975.0,1974.5,0.001]
[1772423246517,0.41058572,1974.8,1974.5,0.001]
[1772423246685,0.89926772,1974.8,1974.5,0.001]
[1772423248210,0.41058572,1974.6,1974.4,0.001]
[1772423248891,1.75482532,1974.5,1974.1,0.46392662]
[1772423249096,0.488682,1974.5,1974.1,1.73032362]
[1772423249402,2.16539931,1974.6,1974.1,0.46392662]
[1772423249602,0.89926772,1974.4,1974.1,0.001]
[1772423249803,0.488682,1974.3,1974.1,0.001]
[1772423250934,1.7549627,1974.3,1974.1,0.001]
[1772423256209,1.7549627,1974.3,1974.2,0.001]
[1772423256391,1.7549627,1974.3,1974.0,0.00253886]
[1772423256831,0.488682,1974.2,1974.0,0.00253886]
[1772423258156,1.75503256,1974.2,1974.0,0.00253886]
[1772423258338,1.75492057,1974.4,1974.0,0.00253886]
[1772423258540,1.75492057,1974.4,1974.0,0.46546548]
[1772423258696,4.47192057,1974.4,1974.0,0.46546548]
[1772423258896,1.26623857,1974.4,1974.0,0.46546548]
[1772423259212,3.204682,1975.1,1974.2,0.42172127]
[1772423259634,1.26556646,1975.4,1974.2,0.42172127]
[1772423259812,0.488682,1975.3,1974.2,0.42172127]